bitfinex/quotes_BTCUSD_20260101
["timestamp","ask_amount","ask_price","bid_price","bid_amount"]
[1767278365383,0.01067277,87935.0,87927.0,0.01137307]
[1767278365608,0.01067277,87934.0,87927.0,0.01137307]
[1767278365914,0.01067277,87933.0,87928.0,0.01137294]
[1767278366042,0.01067277,87932.0,87928.0,0.01137294]
[1767278366241,0.000148,87936.0,87927.0,0.01137307]
[1767278366457,0.01067292,87935.0,87928.0,0.01137294]
[1767278366700,0.01067292,87934.0,87927.0,0.01137307]
[1767278366886,0.01067292,87933.0,87928.0,0.01137294]
[1767278367105,0.01067292,87932.0,87928.0,0.01137294]
[1767278367316,0.000148,87936.0,87928.0,0.01137294]
[1767278367514,0.01067326,87935.0,87928.0,0.01137294]
[1767278367815,0.03526411,87934.0,87928.0,0.01137294]
[1767278367965,0.01067326,87933.0,87928.0,0.01137294]
[1767278368163,0.01067326,87932.0,87928.0,0.01137294]
[1767278368428,0.000148,87936.0,87928.0,0.01137294]
[1767278368623,0.01067348,87935.0,87928.0,0.01137294]
[1767278368828,0.03526471,87934.0,87928.0,0.01137294]
[1767278369025,0.01067348,87933.0,87928.0,0.01137294]
[1767278369167,0.01067348,87932.0,87928.0,0.01137294]
[1767278369367,0.000148,87936.0,87927.0,0.01137307]
[1767278369621,0.000148,87936.0,87928.0,0.01137294]
[1767278369622,0.01067396,87935.0,87928.0,0.01137294]
[1767278369787,0.03526614,87934.0,87927.0,0.01137307]
[1767278369995,0.01067396,87933.0,87927.0,0.01137307]
[1767278370177,0.01067396,87932.0,87927.0,0.01137307]
[1767278370376,0.000148,87936.0,87928.0,0.01137294]
[1767278370580,0.010674,87935.0,87928.0,0.01137294]
[1767278370885,0.03526626,87934.0,87928.0,0.01137294]
[1767278371095,0.010674,87933.0,87929.0,0.01137281]
[1767278371290,0.010674,87932.0,87929.0,0.01137281]
[1767278371511,0.05720776,87939.0,87929.0,0.01137281]
[1767278371714,0.05720776,87939.0,87928.0,0.01137294]
[1767278371715,0.02459312,87938.0,87928.0,0.01137294]
[1767278371914,0.02459312,87938.0,87929.0,0.01137281]
[1767278374303,0.02459312,87938.0,87928.0,0.01137294]
[1767278375741,0.02459312,87938.0,87929.0,0.01137281]
[1767278376141,0.02459312,87938.0,87928.0,0.01137294]
[1767278376754,0.02459312,87938.0,87927.0,0.01137307]
[1767278376917,0.02459312,87938.0,87928.0,0.01137294]
[1767278378977,0.02459312,87938.0,87929.0,0.01137281]
[1767278379182,0.02459312,87938.0,87928.0,0.01137294]
[1767278379577,0.02459312,87938.0,87927.0,0.01137307]
[1767278379779,0.02459312,87938.0,87928.0,0.01137294]
[1767278381513,0.02459312,87938.0,87929.0,0.01137281]
[1767278381709,0.02459312,87938.0,87928.0,0.01137294]
[1767278382846,0.02459312,87938.0,87929.0,0.01137281]
[1767278383011,0.02459312,87938.0,87928.0,0.01137294]
[1767278383612,0.01067473,87937.0,87928.0,0.01137294]
[1767278383827,0.03526785,87936.0,87928.0,0.01137294]
[1767278384033,0.03526785,87935.0,87928.0,0.01137294]
[1767278384211,0.03526785,87934.0,87928.0,0.01137294]
[1767278384544,0.01067473,87933.0,87929.0,0.01137281]
[1767278384748,0.01067473,87932.0,87929.0,0.01137281]
[1767278384976,0.000549,87929.0,87927.0,0.01137307]
[1767278385299,0.04703618,87937.0,87928.0,0.01137294]
[1767278385803,0.04703618,87937.0,87927.0,0.01137307]
[1767278386604,0.04703618,87937.0,87928.0,0.01137294]
[1767278387583,0.04703618,87937.0,87927.0,0.01137307]
[1767278390268,0.04703618,87937.0,87928.0,0.01137294]
[1767278394662,0.04703618,87937.0,87927.0,0.01137307]
[1767278395037,0.04703618,87937.0,87928.0,0.01137294]
[1767278395230,4.017e-05,87939.0,87928.0,0.01137294]
[1767278395432,4.017e-05,87939.0,87927.0,0.01137307]
[1767278395654,4.017e-05,87939.0,87928.0,0.01137294]
[1767278395931,4.017e-05,87939.0,87926.0,0.05242513]
[1767278396146,4.017e-05,87939.0,87927.0,0.01137307]
[1767278396446,0.04890568,87938.0,87927.0,0.01137307]
[1767278397019,0.05958083,87937.0,87927.0,0.01137307]
[1767278397218,0.01067515,87936.0,87928.0,0.01137294]
[1767278397417,0.03527086,87935.0,87927.0,0.01137307]
[1767278397638,0.04890568,87937.0,87927.0,0.01137307]
[1767278397639,0.01067515,87934.0,87927.0,0.01137307]
[1767278397844,0.01067515,87933.0,87928.0,0.01137294]
[1767278398045,0.01067515,87932.0,87928.0,0.01137294]
[1767278398248,0.01067515,87931.0,87928.0,0.01137294]
[1767278398425,0.04890568,87937.0,87928.0,0.01137294]
[1767278398625,0.0352709,87936.0,87928.0,0.01137294]
[1767278398820,0.0352709,87935.0,87928.0,0.01137294]
[1767278399040,0.01067517,87934.0,87928.0,0.01137294]
[1767278399357,0.01067517,87933.0,87928.0,0.01137294]
[1767278399577,0.01067517,87932.0,87928.0,0.01137294]
[1767278399802,0.01067517,87931.0,87927.0,0.01137307]
[1767278399957,0.04890568,87937.0,87927.0,0.01137307]
[1767278400164,0.03527093,87936.0,87928.0,0.01137294]
[1767278400380,0.03527093,87935.0,87928.0,0.01137294]
[1767278400601,0.01067518,87934.0,87928.0,0.01137294]
[1767278400790,0.01067518,87933.0,87925.0,0.01137332]
[1767278400935,0.01067518,87932.0,87926.0,0.0094001]
[1767278401135,0.04890568,87937.0,87926.0,0.0094001]
[1767278401492,0.03527089,87936.0,87927.0,0.01137307]
[1767278401649,0.03527089,87935.0,87927.0,0.01137307]
[1767278401848,0.01067519,87934.0,87928.0,0.01137294]
[1767278402068,0.01067519,87933.0,87930.0,0.01137268]
[1767278402267,0.01067519,87932.0,87930.0,0.01137268]
[1767278402469,0.04890568,87937.0,87928.0,0.01137166]
[1767278402645,0.03527092,87936.0,87928.0,0.01137166]
[1767278402851,0.03527092,87935.0,87928.0,0.01137166]
[1767278403031,0.01067521,87934.0,87928.0,0.01137166]
[1767278403246,0.01067521,87933.0,87928.0,0.01137166]
[1767278403452,0.01067521,87932.0,87928.0,0.01137166]
[1767278403653,4.017e-05,87939.0,87928.0,0.01137166]
[1767278403875,0.01067522,87938.0,87929.0,0.01137281]
[1767278404095,0.03527095,87937.0,87929.0,0.01137281]
[1767278404292,0.03527095,87936.0,87929.0,0.01137281]
[1767278404508,0.03527095,87935.0,87929.0,0.01137281]
[1767278404720,0.01067522,87934.0,87930.0,0.01137268]
[1767278404926,0.01067522,87933.0,87929.0,0.01137281]
[1767278405128,0.01067522,87932.0,87929.0,0.01137281]
[1767278405341,4.017e-05,87939.0,87929.0,0.01137281]
[1767278405526,0.01067526,87938.0,87929.0,0.01137281]
[1767278405750,0.03527103,87937.0,87929.0,0.01137281]
[1767278405931,0.03527103,87936.0,87928.0,0.01137166]
[1767278406139,0.03527103,87935.0,87928.0,0.01137166]
[1767278406340,0.01067526,87934.0,87928.0,0.01137166]
[1767278406537,0.01067526,87933.0,87928.0,0.01137166]
[1767278406746,0.01067526,87932.0,87928.0,0.01137166]
[1767278406964,4.017e-05,87939.0,87928.0,0.01137166]
[1767278407126,0.01067527,87938.0,87928.0,0.01137166]
[1767278407306,0.03527107,87937.0,87928.0,0.01137166]
[1767278407505,0.03527107,87936.0,87928.0,0.01137166]
[1767278407770,0.03527107,87935.0,87929.0,0.01137281]
[1767278407903,0.01067527,87934.0,87929.0,0.01137281]
[1767278408089,0.01067527,87933.0,87928.0,0.01137166]
[1767278408291,0.01067527,87932.0,87928.0,0.01137166]
[1767278408543,4.017e-05,87939.0,87928.0,0.01137166]
[1767278408752,0.01067527,87938.0,87928.0,0.01137166]
[1767278408946,0.03527106,87937.0,87928.0,0.01137166]
[1767278409152,0.03527106,87936.0,87928.0,0.01137166]
[1767278409310,0.03527106,87935.0,87929.0,0.01137281]
[1767278409520,0.01067527,87934.0,87929.0,0.01137281]
[1767278409735,0.01067527,87933.0,87929.0,0.01137281]
[1767278410058,0.01067527,87932.0,87929.0,0.01137281]
[1767278410263,4.017e-05,87939.0,87929.0,0.01137281]
[1767278410426,0.01067527,87938.0,87929.0,0.01137281]
[1767278410626,0.03527105,87937.0,87929.0,0.01137281]
[1767278410861,0.03527105,87936.0,87929.0,0.01137281]
[1767278411067,0.03527105,87935.0,87929.0,0.01137281]
[1767278411224,0.01067527,87934.0,87929.0,0.01137281]
[1767278411565,0.01067527,87933.0,87929.0,0.01137281]
[1767278411762,0.01067527,87932.0,87928.0,0.01137166]
[1767278411910,4.017e-05,87939.0,87929.0,0.01137281]
[1767278412124,0.01067527,87938.0,87929.0,0.01137281]
[1767278412379,0.03527104,87937.0,87929.0,0.01137281]
[1767278412571,0.03527104,87936.0,87929.0,0.01137281]
[1767278412777,0.03527104,87935.0,87930.0,0.01137268]
[1767278412982,0.01067527,87934.0,87930.0,0.01137268]
[1767278413161,0.01067527,87933.0,87930.0,0.01137268]
[1767278413328,4.017e-05,87939.0,87930.0,0.01137268]
[1767278413329,0.01067527,87932.0,87930.0,0.01137268]
[1767278413536,4.017e-05,87939.0,87930.0,0.01137268]
[1767278413736,0.01067527,87938.0,87930.0,0.01137268]
[1767278413955,0.03527104,87937.0,87930.0,0.01137268]
[1767278414160,0.03527104,87936.0,87930.0,0.01137268]
[1767278414356,0.03527104,87935.0,87929.0,0.01137281]
[1767278414581,0.01067527,87934.0,87930.0,0.01137268]
[1767278414791,0.01067527,87933.0,87930.0,0.01137268]
[1767278414994,0.01067527,87932.0,87930.0,0.01137268]
[1767278415166,4.017e-05,87939.0,87930.0,0.01137268]
[1767278415370,0.01067527,87938.0,87930.0,0.01137268]
[1767278415578,0.03527103,87937.0,87930.0,0.01137268]
[1767278415899,0.03527103,87936.0,87930.0,0.01137268]
[1767278416098,0.03527103,87935.0,87930.0,0.01137268]
[1767278416257,0.01067527,87934.0,87930.0,0.01137268]
[1767278416589,0.01067527,87933.0,87930.0,0.01137268]
[1767278416774,0.01067527,87932.0,87930.0,0.01137268]
[1767278416956,4.017e-05,87939.0,87930.0,0.01137268]
[1767278417155,4.017e-05,87939.0,87929.0,0.01137281]
[1767278417156,0.01067527,87938.0,87929.0,0.01137281]
[1767278417368,0.03527104,87937.0,87929.0,0.01137281]
[1767278417560,0.03527104,87936.0,87929.0,0.01137281]
[1767278417777,0.03527104,87935.0,87929.0,0.01137281]
[1767278417981,0.01067527,87934.0,87929.0,0.01137281]
[1767278418182,0.01067527,87933.0,87930.0,0.01137268]
[1767278418358,0.04084965,87949.0,87934.0,0.01137216]
[1767278418359,0.03074463,87949.0,87934.0,0.01137216]
[1767278418563,0.04099765,87954.0,87934.0,0.01137216]
[1767278418564,0.01067508,87944.0,87938.0,0.01137164]
[1767278418746,0.01067508,87943.0,87938.0,0.010851]
[1767278418943,0.01067508,87942.0,87938.0,0.010851]
[1767278419192,0.00050124,87945.0,87938.0,0.010851]
[1767278419617,0.0106699,87944.0,87938.0,0.010851]
[1767278419826,0.00050124,87945.0,87938.0,0.010851]
[1767278420028,0.0106699,87944.0,87938.0,0.010851]
[1767278420340,0.00050124,87945.0,87938.0,0.010851]
[1767278420570,0.01066736,87944.0,87938.0,0.010851]
[1767278420706,0.00050124,87945.0,87938.0,0.010851]
[1767278420907,0.01066736,87944.0,87938.0,0.010851]
[1767278421108,0.00050124,87945.0,87938.0,0.010851]
[1767278441837,0.00050124,87945.0,87933.0,0.01137229]
[1767278442042,0.00050124,87945.0,87935.0,0.01137203]
[1767278443068,0.00050124,87945.0,87936.0,0.0113719]
[1767278443267,0.00050124,87945.0,87935.0,0.01137203]
[1767278443466,0.00050124,87945.0,87934.0,0.02277216]
[1767278443676,0.00050124,87945.0,87935.0,0.01137203]
[1767278444572,0.00050124,87945.0,87936.0,0.0113719]
[1767278444934,0.00050124,87945.0,87935.0,0.01137203]
[1767278445247,0.00050124,87945.0,87936.0,0.0113719]
[1767278445470,0.00050124,87945.0,87935.0,0.01137203]
[1767278445797,0.00050124,87945.0,87936.0,0.0113719]
[1767278446290,0.01066209,87944.0,87936.0,0.0113719]
[1767278446436,0.00050124,87945.0,87936.0,0.0113719]
[1767278446638,0.01066223,87944.0,87935.0,0.01137203]
[1767278446886,0.00050124,87945.0,87935.0,0.01137203]
[1767278447083,0.01066223,87944.0,87935.0,0.01137203]
[1767278447245,0.01066515,87943.0,87936.0,0.0113719]
[1767278447463,0.00050124,87945.0,87936.0,0.0113719]
[1767278447787,0.01066527,87944.0,87936.0,0.0113719]
[1767278447971,0.01066527,87943.0,87936.0,0.0113719]
[1767278448285,0.00050124,87945.0,87937.0,0.01137177]
[1767278448507,0.0106703,87944.0,87936.0,0.0113719]
[1767278448688,0.0106703,87943.0,87936.0,0.0113719]
[1767278449011,0.0106703,87942.0,87937.0,0.01137177]
[1767278449171,0.00050124,87945.0,87937.0,0.01137177]
[1767278449356,0.01067032,87944.0,87937.0,0.01137177]
[1767278449552,0.01067032,87943.0,87937.0,0.01137177]
[1767278449778,0.01067032,87942.0,87937.0,0.01137177]
[1767278449988,0.00050124,87945.0,87937.0,0.01137177]
[1767278450177,0.01067031,87944.0,87937.0,0.01137177]
[1767278450406,0.01067031,87943.0,87937.0,0.01137177]
[1767278450579,0.00050124,87945.0,87936.0,0.0113719]
[1767278450580,0.01067031,87942.0,87936.0,0.0113719]
[1767278450807,0.00050124,87945.0,87936.0,0.0113719]
[1767278451008,0.01067029,87944.0,87936.0,0.0113719]
[1767278451204,0.01067029,87943.0,87936.0,0.0113719]
[1767278451406,0.00050124,87945.0,87936.0,0.0113719]
[1767278451407,0.01067029,87942.0,87936.0,0.0113719]
[1767278451608,0.00050124,87945.0,87936.0,0.0113719]
[1767278451887,0.01067029,87944.0,87936.0,0.0113719]
[1767278452073,0.01067029,87943.0,87936.0,0.0113719]
[1767278452344,0.01067029,87942.0,87936.0,0.0113719]
[1767278452550,0.00050124,87945.0,87936.0,0.0113719]
[1767278452750,0.01067028,87944.0,87936.0,0.0113719]
[1767278452969,0.01067028,87943.0,87936.0,0.0113719]
[1767278453151,0.01067028,87942.0,87936.0,0.0113719]
[1767278453352,0.00050124,87945.0,87936.0,0.0113719]
[1767278453550,0.01067031,87944.0,87936.0,0.0113719]
[1767278453761,0.01067031,87943.0,87936.0,0.0113719]
[1767278453961,0.01067031,87942.0,87936.0,0.0113719]
[1767278454158,0.00050124,87945.0,87936.0,0.0113719]
[1767278454334,0.01067029,87944.0,87936.0,0.0113719]
[1767278454515,0.01067029,87943.0,87936.0,0.0113719]
[1767278454857,0.01067029,87942.0,87936.0,0.0113719]
[1767278455075,0.00050124,87945.0,87936.0,0.0113719]
[1767278455271,0.01067032,87944.0,87936.0,0.0113719]
[1767278455478,0.01067032,87943.0,87936.0,0.0113719]
[1767278455689,0.01067032,87942.0,87937.0,0.01137177]
[1767278456016,0.00050124,87945.0,87936.0,0.0113719]
[1767278456222,0.01067032,87944.0,87936.0,0.0113719]
[1767278456399,0.01067032,87943.0,87937.0,0.01137177]
[1767278456547,0.01067032,87942.0,87937.0,0.01137177]
[1767278456745,0.00050124,87945.0,87937.0,0.01137177]
[1767278456948,0.01067033,87944.0,87935.0,0.01137203]
[1767278457217,0.00050124,87945.0,87934.0,0.0114]
[1767278457218,0.04850419,87942.0,87934.0,0.0114]
[1767278457641,0.04850419,87940.0,87934.0,0.0114]
[1767278458116,0.04850419,87940.0,87934.0,0.02277216]
[1767278458270,0.04850419,87940.0,87934.0,0.0114]
[1767278458470,0.04850419,87940.0,87934.0,0.02277216]
[1767278459704,0.04850419,87940.0,87934.0,0.0114]
[1767278460973,0.04850419,87940.0,87934.0,0.02277216]
[1767278461582,0.04850419,87940.0,87934.0,0.0114]
[1767278461987,0.04850419,87940.0,87934.0,0.02277216]
[1767278463521,0.04850419,87940.0,87935.0,0.01137203]
[1767278464840,0.04850419,87940.0,87934.0,0.02277216]
[1767278465018,0.04850419,87940.0,87934.0,0.0114]
[1767278465219,0.04850419,87940.0,87934.0,0.02277216]
[1767278466159,0.04850419,87940.0,87934.0,0.0114]
[1767278467426,0.04850419,87940.0,87934.0,0.02277216]
[1767278469444,0.04850419,87940.0,87934.0,0.0114]
[1767278470221,0.04850419,87940.0,87932.0,0.0114]
[1767278470362,0.44464259,87944.0,87927.0,0.01137307]
[1767278470363,0.04850419,87933.0,87927.0,0.01137307]
[1767278470700,0.04850419,87938.0,87927.0,0.01137307]
[1767278470902,0.04850419,87938.0,87926.0,0.0114]
[1767278471321,0.04850419,87938.0,87928.0,0.01137294]
[1767278471838,0.04850419,87938.0,87930.0,0.01137268]
[1767278471984,0.04850419,87938.0,87931.0,0.01137255]
[1767278472179,0.04850419,87938.0,87929.0,0.01137281]
[1767278474494,0.04850419,87938.0,87928.0,0.01137294]
[1767278474695,0.04850419,87938.0,87929.0,0.01137281]
[1767278475826,0.04850419,87938.0,87928.0,0.01137294]
[1767278476281,0.04850419,87938.0,87923.0,0.05686764]
[1767278476426,0.04850419,87938.0,87927.0,0.01137307]
[1767278477082,0.04850419,87938.0,87928.0,0.01137294]
[1767278477832,0.04850419,87938.0,87927.0,0.01137307]
[1767278478137,0.04850419,87938.0,87929.0,0.01137281]
[1767278478940,0.04850419,87938.0,87928.0,0.01137294]
[1767278480380,0.04850419,87938.0,87927.0,0.01137307]
[1767278480860,0.04850419,87938.0,87928.0,0.01137294]
[1767278483686,0.04850419,87938.0,87929.0,0.01137281]
[1767278485937,0.04850419,87938.0,87928.0,0.01137294]
[1767278486152,0.04850419,87938.0,87929.0,0.01137281]
[1767278486296,0.04850419,87938.0,87928.0,0.01137294]
[1767278486495,0.04850419,87938.0,87927.0,0.01137307]
[1767278487350,0.04850419,87938.0,87928.0,0.01137294]
[1767278487578,0.04850419,87938.0,87930.0,0.01137268]
[1767278487909,0.04850419,87938.0,87927.0,0.01137307]
[1767278488025,0.04850419,87938.0,87928.0,0.01137294]
[1767278488823,0.04850419,87938.0,87928.0,5.5e-05]
[1767278493169,0.04850419,87938.0,87928.0,0.01142794]
[1767278493876,0.04850419,87938.0,87928.0,5.5e-05]
[1767278494861,0.04850419,87938.0,87927.0,0.0105618]
[1767278497980,0.04850419,87938.0,87926.0,0.0114]
[1767278499271,0.45604259,87940.0,87926.0,0.05662527]
[1767278499470,0.45604259,87940.0,87926.0,0.06799847]
[1767278499778,0.45604259,87940.0,87927.0,0.04522527]
[1767278500859,0.45604259,87940.0,87928.0,0.01137294]
[1767278501285,0.45604259,87940.0,87928.0,0.04522527]
[1767278502650,0.0114,87940.0,87928.0,0.04522527]
[1767278502851,0.04804788,87939.0,87927.0,0.01137307]
[1767278503256,0.04804788,87939.0,87926.0,0.0227732]
[1767278503497,0.04804788,87939.0,87927.0,0.01137307]
[1767278508158,0.04804788,87939.0,87926.0,0.0227732]
[1767278508306,0.04804788,87939.0,87927.0,0.01137307]
[1767278510102,0.04804788,87939.0,87926.0,0.0114]
[1767278510320,0.04804788,87939.0,87926.0,0.0227732]
[1767278512186,0.04804788,87939.0,87927.0,0.01137307]
[1767278512372,0.04804788,87939.0,87926.0,0.0227732]
[1767278512770,0.04804788,87939.0,87927.0,0.01137307]
[1767278513546,0.04804788,87939.0,87926.0,0.0227732]
[1767278513960,0.04804788,87939.0,87927.0,0.01137307]
[1767278514157,0.04804788,87939.0,87926.0,0.0114]
[1767278514565,0.04804788,87939.0,87927.0,0.01137307]
[1767278514757,0.04804788,87939.0,87926.0,0.0227732]
[1767278514884,0.04804788,87939.0,87927.0,0.01137307]
[1767278515086,0.04804788,87939.0,87926.0,0.0227732]
[1767278515385,0.04804788,87939.0,87927.0,0.01137307]
[1767278516618,0.04804788,87939.0,87926.0,0.0227732]
[1767278517048,0.04804788,87939.0,87926.0,0.0114]
[1767278517206,0.04804788,87939.0,87927.0,0.01137307]
[1767278519230,0.04804788,87939.0,87926.0,0.0114]
[1767278519642,0.44476982,87936.0,87926.0,0.0114]
[1767278520237,0.44476982,87936.0,87926.0,0.0227732]
[1767278522986,0.44476982,87936.0,87927.0,0.01137307]
[1767278523934,0.44476982,87936.0,87926.0,0.0227732]
[1767278526280,0.44476982,87936.0,87926.0,0.0114]
[1767278526412,0.44476982,87936.0,87927.0,0.01137307]
[1767278526610,0.44476982,87936.0,87926.0,0.0227732]
[1767278528817,0.44476982,87936.0,87926.0,0.0114]
[1767278529023,0.44476982,87936.0,87927.0,0.01137307]
[1767278529627,0.44476982,87936.0,87926.0,0.0227732]
[1767278531061,0.44476982,87936.0,87927.0,0.01137307]
[1767278533037,0.44476982,87936.0,87926.0,0.0227732]
[1767278533240,0.44476982,87936.0,87927.0,0.01137307]
[1767278534405,0.44476982,87936.0,87926.0,0.0227732]
[1767278534571,0.44476982,87936.0,87927.0,0.01137307]
[1767278534969,0.44476982,87936.0,87926.0,0.0227732]
[1767278536343,0.44476982,87936.0,87927.0,0.01137307]
[1767278538651,0.44476982,87936.0,87928.0,0.01137294]
[1767278539235,0.44476982,87936.0,87927.0,0.01137307]
[1767278542052,0.44476982,87936.0,87926.0,0.07963909]
[1767278543302,0.44476982,87936.0,87926.0,0.0227732]
[1767278543751,0.44476982,87936.0,87927.0,0.01137307]
[1767278543953,0.44476982,87936.0,87926.0,0.0227732]
[1767278544291,0.44476982,87936.0,87927.0,0.01137307]
[1767278545353,0.44476982,87936.0,87928.0,0.01137294]
[1767278545528,0.44476982,87938.0,87928.0,0.01137294]
[1767278545909,0.44476982,87938.0,87927.0,0.01137307]
[1767278546667,0.49276909,87938.0,87927.0,0.01137307]
[1767278546875,0.49276909,87938.0,87928.0,0.01137294]
[1767278548782,0.49276909,87938.0,87927.0,0.01137307]
[1767278548990,0.49276909,87938.0,87928.0,0.01137294]
[1767278549153,0.04799927,87938.0,87927.0,0.01137307]
[1767278549802,0.04799927,87938.0,87928.0,0.01137294]
[1767278549954,0.04799927,87938.0,87927.0,0.01137307]
[1767278550161,0.04799927,87938.0,87928.0,0.01137294]
[1767278551022,0.04799927,87938.0,87929.0,0.01137281]
[1767278552950,0.05398932,87938.0,87926.0,0.0114]
[1767278553076,0.04854927,87929.0,87926.0,0.0114]
[1767278553275,0.04799927,87929.0,87926.0,0.0114]
[1767278555826,0.04799927,87929.0,87921.0,0.02277384]
[1767278556738,0.04799927,87929.0,87921.0,0.0114]
[1767278557584,0.04799927,87929.0,87921.0,0.02277384]
[1767278557920,0.04799927,87929.0,87921.0,0.0114]
[1767278566072,0.44476982,87931.0,87921.0,0.0114]
[1767278568043,0.04799927,87930.0,87921.0,0.0114]
[1767278569280,0.04799927,87930.0,87921.0,0.02277384]
[1767278569901,0.04799927,87930.0,87921.0,0.0114]
[1767278575238,0.04799927,87930.0,87918.0,0.01189057]
[1767278575239,0.04799927,87930.0,87918.0,0.00051634]
[1767278575478,0.00055,87921.0,87918.0,0.00051634]
[1767278575873,0.44476982,87928.0,87918.0,0.00051634]
[1767278578489,0.01137281,87929.0,87918.0,0.00051634]
[1767278578696,0.49290917,87930.0,87918.0,0.00051634]
[1767278578848,0.50428185,87930.0,87918.0,0.00051634]
[1767278579047,0.01137281,87929.0,87918.0,0.00051634]
[1767278579250,0.49290917,87930.0,87918.0,0.00051634]
[1767278580002,0.50428185,87930.0,87918.0,0.00051634]
[1767278580173,0.04977497,87922.0,87918.0,0.00051634]
[1767278580381,0.04977497,87918.0,87908.0,0.0114]
[1767278580629,0.09473886,87915.0,87908.0,0.0114]
[1767278592599,0.09418986,87915.0,87908.0,0.0114]
[1767278593458,0.04441489,87915.0,87908.0,0.0114]
[1767278595201,0.04977497,87920.0,87908.0,0.02277552]
[1767278595503,0.04977497,87920.0,87909.0,0.01137539]
[1767278596007,0.04977497,87920.0,87908.0,0.02277552]
[1767278596570,0.04977497,87920.0,87908.0,0.0114]
[1767278601588,0.04977497,87920.0,87908.0,0.01144017]
[1767278603599,0.49468487,87920.0,87908.0,0.01144017]
[1767278604383,0.04977497,87920.0,87908.0,0.01144017]
[1767278611404,0.04977497,87920.0,87908.0,0.02281569]
[1767278614438,0.04977497,87920.0,87908.0,0.01144017]
[1767278615876,0.49468487,87920.0,87908.0,0.01144017]
[1767278620202,0.04817265,87919.0,87908.0,0.01144017]
[1767278626247,0.04817265,87919.0,87908.0,0.02281569]
[1767278626396,0.04817265,87919.0,87908.0,0.01144017]
[1767278628154,0.04817265,87919.0,87908.0,0.02281569]
[1767278629160,0.04817265,87919.0,87908.0,0.01144017]
[1767278642698,0.04817265,87919.0,87908.0,0.02281569]
[1767278642900,0.04817265,87919.0,87908.0,0.01144017]
[1767278643124,0.04817265,87919.0,87908.0,0.02281569]
[1767278643742,0.04817265,87919.0,87908.0,0.01144017]
[1767278655300,0.04817265,87919.0,87908.0,0.02281569]
[1767278655700,0.04817265,87919.0,87909.0,0.01137539]
[1767278656284,0.04817265,87919.0,87908.0,0.02281569]
[1767278656491,0.04725441,87917.0,87906.0,0.01137578]
[1767278656858,0.04725441,87915.0,87906.0,6.027e-05]
[1767278664751,0.04725441,87915.0,87906.0,2.7e-07]
[1767278692707,0.0480894,87920.0,87906.0,0.01137605]
[1767278692924,0.03526284,87919.0,87906.0,0.01137605]
[1767278693139,0.49305789,87920.0,87906.0,0.01137605]
[1767278693357,0.03526304,87919.0,87906.0,0.01137605]
[1767278693566,0.49305789,87920.0,87906.0,0.01137605]
[1767278693772,0.03526316,87919.0,87906.0,2.7e-07]
[1767278693979,0.49366111,87920.0,87906.0,2.7e-07]
[1767278694183,0.03526316,87919.0,87906.0,0.01137605]
[1767278694354,0.49366111,87920.0,87906.0,0.01137605]
[1767278694535,0.03526334,87919.0,87906.0,0.01137605]
[1767278694735,0.04869262,87919.0,87906.0,0.01137605]
[1767278695145,100.0001,88236.0,87906.0,0.01137605]
[1767278695146,0.03072725,87943.0,87936.0,0.0113719]
[1767278695395,0.04869262,87955.0,87938.0,0.0455448]
[1767278695607,0.04869262,87953.0,87939.0,0.0455448]
[1767278695800,0.000489,87938.0,87937.0,0.0114]
[1767278696002,0.04869262,87949.0,87937.0,0.0114]
[1767278696203,0.04869262,87949.0,87938.0,0.01137164]
[1767278696471,0.04904592,87949.0,87939.0,0.01137151]
[1767278696683,0.04904592,87949.0,87937.0,0.0114]
[1767278696887,0.04904592,87949.0,87937.0,0.02277177]
[1767278697090,0.04904592,87949.0,87939.0,0.44496849]
[1767278697283,0.04904592,87949.0,87939.0,0.44447949]
[1767278698223,0.04904592,87949.0,87939.0,0.455851]
[1767278698421,0.04904592,87949.0,87939.0,0.01137151]
[1767278699261,0.04904592,87949.0,87940.0,0.01137138]
[1767278699459,0.04904592,87949.0,87941.0,0.01137126]
[1767278699629,0.04904592,87949.0,87940.0,0.01137138]
[1767278700237,0.04904592,87949.0,87942.0,0.01137113]
[1767278700444,0.04904592,87949.0,87941.0,0.01137126]
[1767278701203,0.04904592,87949.0,87939.0,0.01137151]
[1767278701376,0.04904592,87949.0,87940.0,0.01137138]
[1767278701755,0.04904592,87949.0,87937.0,0.0114]
[1767278702158,0.04904592,87949.0,87937.0,0.01085]
[1767278703183,0.0114,87948.0,87936.0,0.0113719]
[1767278703424,0.04869262,87947.0,87936.0,0.0113719]
[1767278703981,0.04869262,87947.0,87935.0,0.01137203]
[1767278704482,0.04869262,87947.0,87934.0,0.01137216]
[1767278704720,0.04869262,87947.0,87935.0,0.01137203]
[1767278705531,0.04869262,87947.0,87934.0,0.01137216]
[1767278705742,0.04869262,87947.0,87935.0,0.01137203]
[1767278706259,0.04869262,87947.0,87934.0,0.01137216]
[1767278706715,0.04869262,87947.0,87935.0,0.01137203]
[1767278707233,0.04869262,87947.0,87934.0,0.01137216]
[1767278707441,0.04869262,87947.0,87935.0,0.01137203]
[1767278707618,0.04869262,87947.0,87936.0,0.0113719]
[1767278707955,0.04869262,87947.0,87935.0,0.01137203]
[1767278709706,0.04869262,87947.0,87936.0,0.0113719]
[1767278709906,0.04869262,87947.0,87935.0,0.01137203]
[1767278712233,0.04869262,87947.0,87936.0,0.0113719]
[1767278715145,0.04869262,87947.0,87937.0,0.01137177]
[1767278718838,0.04869262,87947.0,87938.0,0.01137164]
[1767278719582,0.04869262,87947.0,87937.0,0.01137177]
[1767278720399,0.04869262,87947.0,87938.0,0.01137164]
[1767278720772,0.04869262,87947.0,87937.0,0.01137177]
[1767278720980,0.04869262,87947.0,87938.0,0.01137164]
[1767278721177,0.04869262,87947.0,87937.0,0.01137177]
[1767278721384,0.04869262,87947.0,87938.0,0.01137164]
[1767278722878,0.04869262,87947.0,87937.0,0.01137177]
[1767278723083,0.04869262,87947.0,87938.0,0.01137164]
[1767278725582,0.04869262,87947.0,87936.0,0.0113719]
[1767278725796,0.04869262,87947.0,87937.0,0.01137177]
[1767278726277,0.04869262,87947.0,87938.0,0.01137164]
[1767278726813,0.04869262,87947.0,87937.0,0.01137177]
[1767278727281,0.04869262,87947.0,87938.0,0.01137164]
[1767278727578,0.04869262,87947.0,87937.0,0.01137177]
[1767278727785,0.04869262,87947.0,87938.0,0.01137164]
[1767278729769,0.04869262,87947.0,87937.0,0.01137177]
[1767278729927,0.04869262,87947.0,87938.0,0.01137164]
[1767278731162,0.04869262,87947.0,87937.0,0.01137177]
[1767278731374,0.04869262,87947.0,87938.0,0.01137164]
[1767278732171,0.04869262,87947.0,87937.0,0.01137177]
[1767278732552,0.04869262,87947.0,87936.0,0.0113719]
[1767278732771,0.04869262,87947.0,87937.0,0.01137177]
[1767278734146,0.04869262,87947.0,87938.0,0.01137164]
[1767278734679,0.04869262,87947.0,87937.0,0.01137177]
[1767278735126,0.04869262,87947.0,87936.0,0.0113719]
[1767278735388,0.04869262,87947.0,87938.0,0.01137164]
[1767278735790,0.04869262,87947.0,87937.0,0.01137177]
[1767278736793,0.04869262,87947.0,87938.0,0.01137164]
[1767278736996,0.04869262,87947.0,87937.0,0.01137177]
[1767278739027,0.04869262,87947.0,87936.0,0.0113719]